[Event "44th Chess Olympiad Open 2022"]
[Site "Chennai"]
[Date "2022.08.03"]
[Round "6.45"]
[White "Diaz Rosas, Julio Cesar"]
[Black "Razanadrakotoarisoa, Toavina"]
[Result "0-1"]
[WhiteElo "2328"]
[BlackElo "2039"]
[Annotator "TA"]
[PlyCount "84"]
[EventDate "2022.??.??"]
[TimeControl "60"]

{[%evp 24,84,0,-81,-79,-63,-53,-83,0,0,32,34,33,40,0,46,0,25,32,-124,-114,-183,
-161,-239,-240,-201,-185,-257,-267,-262,-254,-269,-268,-366,-294,-309,0,0,0,
-289,-278,-368,-368,-353,-404,-475,-472,-921,-498,-660,-470,-999,-999,-1335,
-1317,-1172,-1060,-1008,-672,-672,-665,-665,-629]} 1. d4 {[%emt 0:00:14]} Nf6 {
[%emt 0:00:09]} 2. c4 {[%emt 0:00:08]} c5 {[%emt 0:00:35]} 3. d5 {[%emt 0:00:
00]} d6 {[%emt 0:00:20]} 4. Nc3 {[%emt 0:00:09][%cal Yb1c3,Yc3b5,Yb5d6]} e6 {
[%emt 0:00:08]} 5. e4 {[%emt 0:00:07]} exd5 {[%emt 0:00:05]} 6. cxd5 {[%emt 0:
02:41]} g6 {[%emt 0:00:50]} 7. f4 {[%emt 0:00:04]} Bg7 {[%emt 0:00:55]} 8. e5 {
[%emt 0:00:07]} Nfd7 {[%emt 0:00:31]} 9. Nb5 {[%emt 0:00:15]} dxe5 {[%emt 0:01:
05]} 10. Nd6+ {[%emt 0:00:07]} Ke7 {[%emt 0:00:12]} 11. Nxc8+ {[%emt 0:00:07]}
Qxc8 {[%emt 0:00:08]} 12. Nf3 {[%emt 0:00:08]} Re8 {[%emt 0:00:00]} 13. Bc4 {
[%emt 0:00:10]} (13. f5 $11 {keeps the balance.}) 13... Kf8 {[%emt 0:04:12]
A66: Modern Benoni: Mikenas Attack.} 14. O-O {[%emt 0:00:08] Black must now
prevent Ng5.} e4 {[%emt 0:03:06]} 15. Ng5 {[%emt 0:00:41] Threatens to win
with f5.} Bd4+ {[%emt 0:00:44]} (15... Nb6 $1 $17 {[%cal Rb6c4]} 16. Bb5 Rd8)
16. Kh1 $14 {[%emt 0:00:05]} h6 {[%emt 0:01:30]} 17. f5 $1 {[%emt 0:00:14]
[%cal Yf4f5,Yf5g6,Yg6g7]} hxg5 {[%emt 0:40:35]} 18. fxg6 {[%emt 0:00:09]} f6 {
[%emt 0:00:31][%cal Yf7f6,Yf6g5]} 19. Qh5 {[%emt 0:00:59] Threatening mate
with d6.} Ke7 {[%emt 0:00:08][%cal Yf8e7,Ye7d6,Yd6c7]} 20. g7 {[%emt 0:00:26]
[%cal Yc1g5] Against Rh8} Kd6 {[%emt 0:00:00] [#] Hoping for ...Nb6.} 21. Bxg5
$146 {[%emt 0:00:26]} ({Predecessor:} 21. Qg6 Kc7 22. d6+ Kb6 23. g8=Q Rxg8 24.
Qxg8 Qxg8 25. Bxg8 Na6 26. Bh7 Re8 27. Bf5 {½-½ (66) Mlynek,P (2205)-Pekun,C
(2164) Rogaska Slatina 2009}) 21... fxg5 $17 {[%emt 0:03:54]} 22. Qg6+ {
[%emt 0:00:32]} (22. Qxg5 $17 Qd8 23. Qg6+ Nf6 24. Rxf6+ Bxf6 25. Rf1) 22...
Kc7 $19 {[%emt 0:00:14]} 23. Rf7 {[%emt 0:00:00] [#]} (23. b4 $142 Bxa1 24.
Rxa1) 23... Rg8 $1 {[%emt 0:05:31]} (23... Bxb2 $2 24. d6+ Kb6 25. Rb1 $18) 24.
Raf1 {[%emt 0:06:05]} Qe8 {[%emt 0:04:09][%cal Yd4g7] aiming for ...Bxg7!} (
24... Bxb2 $2 25. d6+ Kc6 26. Qe6 $18) 25. Qxg5 {[%emt 0:03:57] [#]} (25. b4
$142 Qe5 26. bxc5 Bxc5 27. Be2) 25... Rxg7 $1 {[%emt 0:05:50]} 26. Rxg7 {
[%emt 0:00:43]} Bxg7 {[%emt 0:00:02] Chess con chili.} 27. Qxg7 {[%emt 0:00:23]
} Qe5 {[%emt 0:01:46]} 28. Qg8 {[%emt 0:01:09]} a6 {[%emt 0:01:17] ...Nb6 is
the strong threat.} (28... Qxb2 29. d6+ Kxd6 30. Qd8 $11 (30. Rd1+ $2 Kc7 $19))
29. Be2 {[%emt 0:02:12]} Nf6 {[%emt 0:01:17]} (29... Qxb2 30. Bg4 e3 31. h3 $17
) 30. Qf8 {[%emt 0:00:44][%csl Yc5,Yf6]} Nfd7 {[%emt 0:01:30]} ({Resist} 30...
Nxd5 31. Qxc5+ Nc6 32. Rf7+ Nde7 33. Qxe5+ Nxe5 34. Rxe7+ Kd6 35. Rxb7 $16) 31.
Qg8 {[%emt 0:01:32]} Kb6 {[%emt 0:01:32]} (31... Qxb2 32. Bg4 e3 33. h3 $17)
32. Bg4 {[%emt 0:04:29]} Ka7 {[%emt 0:00:33]} 33. Qf7 {[%emt 0:01:53]} Nb6 {
[%emt 0:02:20]} ({Weaker is} 33... Qxb2 34. Bxd7 Nxd7 35. Qxd7 $17) 34. Rd1 {
[%emt 0:02:04]} e3 {[%emt 0:01:56][%cal Yb8d7] And now ...N8d7! would win.
Black is clearly winning.} 35. Be6 {[%emt 0:01:21]} (35. Re1 $142) 35... a5 {
[%emt 0:01:55]} 36. Qf3 {[%emt 0:03:36]} Na6 {[%emt 0:00:00]} 37. Qe2 {[%emt 0:
00:43]} (37. Re1 $142) 37... Rf8 {[%emt 0:00:38] Strongly threatening ...Rf2.}
38. Bg4 {[%emt 0:00:59]} Rf2 {[%emt 0:00:49]} 39. Qe1 {[%emt 0:00:02]} Qe4 {
[%emt 0:04:07][%csl Gf2][%cal Re4g2]} 40. Bf3 {[%emt 0:00:05]} Rxf3 {[%emt 0:
00:13]} 41. gxf3 {[%emt 0:30:02]} Qxf3+ {[%emt 0:00:00]} 42. Kg1 {[%emt 0:00:
03]} Nxd5 {[%emt 0:00:30] Weighted Error Value: White=0.74/Black=0.55} 0-1

[Event "44th Chess Olympiad Open 2022"]
[Site "Chennai"]
[Date "2022.08.03"]
[Round "6.45"]
[White "Montes Orozco, Miguel Angel"]
[Black "Rajerison, Mananihaja Charly"]
[Result "1-0"]
[WhiteElo "2070"]
[BlackElo "1912"]
[Annotator "NA RC"]
[PlyCount "53"]
[EventDate "2022.??.??"]
[TimeControl "60"]

1. d4 {[%emt 0:00:03]} d6 {[%emt 0:00:07]} 2. Nf3 {[%emt 0:00:06]} Bg4 {
[%emt 0:00:13]} 3. e4 {[%emt 0:00:22]} Nf6 {[%emt 0:00:28]} 4. Nc3 {[%emt 0:00:
00]} e6 {[%emt 0:00:17]} 5. h3 {[%emt 0:00:10]} Bh5 {[%emt 0:00:17]} 6. Qe2 {
[%emt 0:01:37]} c6 {[%emt 0:01:54]} 7. g4 {[%emt 0:00:50]} Bg6 {[%emt 0:00:23]}
8. h4 {[%emt 0:00:06]} h5 {[%emt 0:02:55]} 9. g5 {[%emt 0:00:06]} Nfd7 {
[%emt 0:00:14]} 10. d5 {[%emt 0:00:08]} e5 {[%emt 0:01:23]} 11. Be3 {[%emt 0:
00:00]} cxd5 {[%emt 0:04:03]} 12. exd5 {[%emt 0:00:19]} Be7 {[%emt 0:03:30]}
13. Bh3 {[%emt 0:02:17]} O-O {[%emt 0:00:52]} 14. O-O-O {[%emt 0:04:24]} Na6 {
[%emt 0:03:22]} 15. Nd2 {[%emt 0:02:22]} Nb4 {[%emt 0:15:44]} 16. Qb5 {[%emt 0:
00:00]} Nxc2 {[%emt 0:02:35]} 17. Qxd7 {[%emt 0:03:08]} Nb4 {[%emt 0:01:07]}
18. Qxd8 {[%emt 0:03:48]} Bxd8 {[%emt 0:03:38]} 19. Nc4 {[%emt 0:00:56]} Be7 {
[%emt 0:01:03]} 20. b3 {[%emt 0:03:02]} b5 {[%emt 0:09:23]} 21. Nxb5 {[%emt 0:
00:00]} Nxa2+ {[%emt 0:00:32]} 22. Kb2 {[%emt 0:00:07]} Nb4 {[%emt 0:00:08]}
23. Nbxd6 {[%emt 0:01:44]} Bxd6 {[%emt 0:01:46]} 24. Nxd6 {[%emt 0:00:08]} Rfd8
{[%emt 0:00:19]} 25. Nf5 {[%emt 0:00:30]} Bxf5 {[%emt 0:00:43]} 26. Bxf5 {
[%emt 0:00:03]} Nxd5 {[%emt 0:00:15]} 27. Rxd5 {[%emt 0:00:07]} 1-0

[Event "44th Chess Olympiad Open 2022"]
[Site "Chennai"]
[Date "2022.08.03"]
[Round "6.45"]
[White "Rakotomaharavo, Dylan"]
[Black "Capo Vidal, Uriel"]
[Result "0-1"]
[WhiteElo "1948"]
[BlackElo "2215"]
[Annotator "NA RC"]
[PlyCount "104"]
[EventDate "2022.??.??"]
[TimeControl "60"]

1. e4 {[%emt 0:00:03]} c5 {[%emt 0:00:14]} 2. Nf3 {[%emt 0:00:06]} Nc6 {
[%emt 0:00:11]} 3. Bb5 {[%emt 0:00:52]} g6 {[%emt 0:00:42]} 4. O-O {[%emt 0:00:
00]} Bg7 {[%emt 0:00:26]} 5. Re1 {[%emt 0:00:44]} e5 {[%emt 0:00:58]} 6. c3 {
[%emt 0:03:28]} Nge7 {[%emt 0:00:31]} 7. Na3 {[%emt 0:00:21]} O-O {[%emt 0:00:
00]} 8. Nc2 {[%emt 0:01:41]} d6 {[%emt 0:03:07]} 9. Bc4 {[%emt 0:04:59]} Qc7 {
[%emt 0:11:41]} 10. d3 {[%emt 0:00:41]} Na5 {[%emt 0:02:00]} 11. Nd2 {[%emt 0:
00:00]} Nxc4 {[%emt 0:00:35]} 12. Nxc4 {[%emt 0:00:06]} b5 {[%emt 0:01:30]} 13.
N4a3 {[%emt 0:00:22]} Rb8 {[%emt 0:00:41]} 14. d4 {[%emt 0:03:23]} b4 {[%emt 0:
00:00]} 15. Nb1 {[%emt 0:00:07]} cxd4 {[%emt 0:00:46]} 16. cxd4 {[%emt 0:00:08]
} f5 {[%emt 0:03:41]} 17. Nd2 {[%emt 0:03:59]} f4 {[%emt 0:05:05]} 18. Nf3 {
[%emt 0:01:18]} Bg4 {[%emt 0:00:54]} 19. Bd2 {[%emt 0:00:27]} a5 {[%emt 0:00:
00]} 20. Rc1 {[%emt 0:00:05]} Qa7 {[%emt 0:01:12]} 21. d5 {[%emt 0:00:35]} Rfc8
{[%emt 0:03:19]} 22. h3 {[%emt 0:00:31]} Bh5 {[%emt 0:00:24]} 23. Na1 {[%emt 0:
00:00]} g5 {[%emt 0:14:36]} 24. Qb3 {[%emt 0:00:57]} Bf6 {[%emt 0:00:29]} 25.
Rxc8+ {[%emt 0:00:53]} Rxc8 {[%emt 0:00:10]} 26. Rc1 {[%emt 0:00:03]} Rxc1+ {
[%emt 0:11:34]} 27. Bxc1 {[%emt 0:00:05]} Qc5 {[%emt 0:01:47]} 28. Qc2 {
[%emt 0:00:21]} Qxc2 {[%emt 0:00:35]} 29. Nxc2 {[%emt 0:00:04]} Bg6 {[%emt 0:
00:00]} 30. Nd2 {[%emt 0:00:04]} Nxd5 {[%emt 0:00:12]} 31. exd5 {[%emt 0:00:37]
} Bxc2 {[%emt 0:03:47]} 32. Nc4 {[%emt 0:00:08]} Be4 {[%emt 0:01:14]} 33. Nxa5
{[%emt 0:01:18]} Bxd5 {[%emt 0:00:11]} 34. Bd2 {[%emt 0:00:04]} Bxa2 {[%emt 0:
00:00]} 35. Bxb4 {[%emt 0:00:15]} e4 {[%emt 0:03:01]} 36. Bxd6 {[%emt 0:00:34]}
Bxb2 {[%emt 0:00:10]} 37. Nc6 {[%emt 0:00:16]} Kf7 {[%emt 0:00:54]} 38. h4 {
[%emt 0:04:56]} h6 {[%emt 0:03:16]} 39. hxg5 {[%emt 0:00:05]} hxg5 {[%emt 0:00:
00]} 40. Bc5 {[%emt 0:04:54]} Ke6 {[%emt 0:06:35]} 41. Ba7 {[%emt 0:33:02]} Bd5
{[%emt 0:31:20]} 42. Nd4+ {[%emt 0:03:58]} Ke5 {[%emt 0:00:56]} 43. Nc2 {
[%emt 0:07:33]} Bb3 {[%emt 0:01:26]} 44. Bb8+ {[%emt 0:01:50]} Kd5 {[%emt 0:00:
00]} 45. g3 {[%emt 0:02:30]} Bxc2 {[%emt 0:00:20]} 46. gxf4 {[%emt 0:00:06]} g4
{[%emt 0:00:34]} 47. Kg2 {[%emt 0:01:01]} Ke6 {[%emt 0:00:10]} 48. Kg3 {
[%emt 0:00:43]} Kf5 {[%emt 0:00:03]} 49. Bc7 {[%emt 0:00:38]} Bc1 {[%emt 0:00:
00]} 50. Bd6 {[%emt 0:01:01]} Bd1 {[%emt 0:00:17]} 51. Bc7 {[%emt 0:00:08]} Bd2
{[%emt 0:00:05]} 52. Bd6 {[%emt 0:00:14]} Bf3 {[%emt 0:00:04]} 0-1

[Event "44th Chess Olympiad Open 2022"]
[Site "Chennai"]
[Date "2022.08.03"]
[Round "6.46"]
[White "Saraci, Nderim"]
[Black "Alfaro, William"]
[Result "1-0"]
[WhiteElo "2495"]
[BlackElo "2155"]
[Annotator "TA"]
[PlyCount "91"]
[EventDate "2022.??.??"]
[TimeControl "60"]

{[%evp 23,91,11,24,2,48,44,53,53,53,57,53,54,60,49,52,37,45,45,45,45,45,38,64,
62,64,56,69,68,91,66,68,68,69,53,53,53,62,62,76,76,80,80,95,95,95,95,95,95,107,
100,107,107,283,283,290,290,290,290,367,369,1199,1102,959,929,1119,1033,1141,
1075,1046,533]} 1. d4 {[%emt 0:00:05]} Nf6 {[%emt 0:00:05]} 2. c4 {[%emt 0:00:
00]} c5 {[%emt 0:00:05]} 3. d5 {[%emt 0:02:30]} b5 {[%emt 0:00:43]} 4. cxb5 {
[%emt 0:03:33]} a6 {[%emt 0:00:11]} 5. b6 {[%emt 0:00:07]} e6 {[%emt 0:00:59]}
6. Nc3 {[%emt 0:10:31]} exd5 {[%emt 0:00:14]} 7. Nxd5 {[%emt 0:00:25]} Nxd5 {
[%emt 0:00:06]} 8. Qxd5 {[%emt 0:00:07]} Nc6 {[%emt 0:00:05]} 9. Nf3 {[%emt 0:
00:00]} Rb8 {[%emt 0:00:04]} 10. e4 {[%emt 0:22:45]} Be7 {[%emt 0:01:06]} 11.
Bc4 {[%emt 0:03:17]} O-O {[%emt 0:00:15]} 12. O-O {[%emt 0:00:54]} Rxb6 {
[%emt 0:00:05]} 13. Be3 {[%emt 0:07:46] [#] A57: Benko/Volga Gambit.} Nb4 $146
{[%emt 0:05:25]} (13... d6 $11) ({Predecessor:} 13... d6 14. Qd2 Bf6 15. Rad1
Rxb2 16. Qxd6 Qxd6 17. Rxd6 Na5 18. Bd5 Be7 19. Bxc5 Bxd6 20. Bxd6 Re8 {
0-1 (67) Kalavannan,K (2324)-Gracia Alvarez,G (2237) Chess.com INT 2022}) 14.
Qd2 $14 {[%emt 0:01:04]} Bb7 {[%emt 0:00:11]} 15. a3 $1 {[%emt 0:01:07] White
is slightly better.} d5 {[%emt 0:00:13]} 16. axb4 {[%emt 0:02:40]} dxc4 {
[%emt 0:01:13]} 17. bxc5 {[%emt 0:03:09]} Re6 {[%emt 0:16:24]} 18. Qxd8 {
[%emt 0:05:47]} Rxd8 {[%emt 0:00:19]} 19. Nd2 {[%emt 0:13:05]} Bxc5 {[%emt 0:
00:00]} 20. Bxc5 {[%emt 0:00:58] Black must now prevent Bb4.} Rxd2 {[%emt 0:00:
00]} 21. Rfd1 {[%emt 0:00:08]} Rd3 {[%emt 0:04:28]} 22. f3 {[%emt 0:00:07]} h6
{[%emt 0:00:18]} 23. Rxd3 {[%emt 0:01:19]} cxd3 {[%emt 0:00:01] Endgame KRB-KRB
} 24. Rd1 {[%emt 0:00:02]} f5 {[%emt 0:06:11]} 25. exf5 {[%emt 0:01:19]} ({
But not} 25. Rxd3 fxe4 26. Rd8+ Kh7 $11) 25... Re5 {[%emt 0:00:00][%csl Yc5,
Yf5]} 26. Bd4 {[%emt 0:00:33]} Rxf5 {[%emt 0:00:05]} 27. Rxd3 {[%emt 0:00:06]}
Rd5 {[%emt 0:00:04]} 28. Rb3 {[%emt 0:05:00]} Rxd4 {[%emt 0:00:00]} 29. Rxb7 {
[%emt 0:00:04] KR-KR} Rd1+ {[%emt 0:01:05]} 30. Kf2 {[%emt 0:00:00]} Rd2+ {
[%emt 0:00:03]} 31. Kg3 {[%emt 0:00:12]} a5 {[%emt 0:00:10]} 32. h4 {[%emt 0:
01:23]} Kh7 {[%emt 0:02:24]} 33. Rb5 {[%emt 0:03:10]} a4 {[%emt 0:00:00]} 34.
h5 {[%emt 0:03:13]} Kg8 {[%emt 0:04:00]} 35. Rb4 {[%emt 0:00:10]} Kh7 {[%emt 0:
02:03]} 36. Kh3 {[%emt 0:00:34]} Kg8 {[%emt 0:08:53]} 37. g3 {[%emt 0:01:20]}
a3 $2 {[%emt 0:05:43] This move loses the game for Black.} (37... Rd5 $16) 38.
bxa3 $18 {[%emt 0:00:10][%cal Yb2a3,Ya3a4]} Rd3 {[%emt 0:00:02] [#]} 39. a4 $1
{[%emt 0:00:34]} Rxf3 {[%emt 0:00:04] [#]} 40. Kg4 $1 {[%emt 0:00:07]} Ra3 {
[%emt 0:00:26]} 41. Kf4 {[%emt 0:30:08] And now g4 would win.} g6 $2 {[%emt 0:
31:51]} (41... Kf7 42. g4 g6 43. Rb7+ Ke8) 42. hxg6 {[%emt 0:00:00] White is
clearly winning.} Kg7 {[%emt 0:00:00]} 43. g4 {[%emt 0:00:00]} Kxg6 {[%emt 0:
00:00]} 44. Ke5 {[%emt 0:00:00]} Kf7 {[%emt 0:00:00]} 45. Kd6 {[%emt 0:02:21]}
Rc3 {[%emt 0:00:00]} 46. Re4 {[%emt 0:00:00] Weighted Error Value: White=0.03 
(flawless) /Black=0.17 (very precise)} 1-0

[Event "44th Chess Olympiad Open 2022"]
[Site "Chennai"]
[Date "2022.08.03"]
[Round "6.46"]
[White "Makolli, Perparim"]
[Black "Salazar Cabezas, Alberto Javier"]
[Result "1-0"]
[WhiteElo "2247"]
[BlackElo "2155"]
[Annotator "TA"]
[PlyCount "84"]
[EventDate "2022.??.??"]
[TimeControl "60"]

{[%evp 10,84,-32,-22,0,0,22,-20,23,-34,-27,-39,-15,-28,-8,-102,0,0,15,-50,-41,
-42,-12,-16,-4,-28,0,-20,0,0,56,41,27,-95,-105,-155,26,-104,-91,-81,-79,-100,
-98,-124,126,83,470,470,492,436,424,403,412,416,415,383,632,634,611,492,461,
379,643,627,924,902,1071,598,1390,1333,1712,1573,29984,29985,29994,29995,29995]
} 1. e4 {[%emt 0:00:42]} e6 {[%emt 0:00:05]} 2. d4 {[%emt 0:00:25]} d5 {
[%emt 0:00:06]} 3. e5 {[%emt 0:02:15]} c5 {[%emt 0:00:06]} 4. Nf3 {[%emt 0:00:
00]} Nc6 {[%emt 0:00:06]} 5. Bd3 {[%emt 0:00:14]} cxd4 {[%emt 0:03:47]} 6. O-O
{[%emt 0:00:12]} Be7 {[%emt 0:03:18] C02: French: Advance Variation.} 7. Re1 {
[%emt 0:03:34]} Bd7 {[%emt 0:00:34]} 8. a3 {[%emt 0:00:30] White has
compensation.} a5 {[%emt 0:10:13] [#] The position is equal.} (8... f6 $5 {
[%cal Rf6e5]}) 9. Bf4 $146 {[%emt 0:02:11]} ({White should play} 9. Nbd2 $11) (
{Predecessor:} 9. b3 Rc8 10. Qe2 h6 11. Bb2 Bc5 12. Nbd2 Nge7 13. Nf1 Nf5 14.
Red1 Qb6 15. g4 {1-0 (33) Zobel,T (2088)-Goebel,C (1844) Bad Homburg 2008})
9... g5 {[%emt 0:01:02]} 10. Bc1 {[%emt 0:03:05]} h5 {[%emt 0:05:29]} 11. Bf1 {
[%emt 0:04:48]} Nh6 {[%emt 0:10:50]} 12. c3 {[%emt 0:04:33]} (12. Nxd4 $11 Nxd4
13. Qxd4) 12... g4 {[%emt 0:10:23]} (12... dxc3 $17 {And now ...g4 would win.}
13. Nxc3 g4 14. Bxh6 (14. Nd4 Nxd4 15. Bxh6 Nf5 $17) 14... Rxh6) 13. Nxd4 $11 {
[%emt 0:02:34]} Qb6 {[%emt 0:05:22]} 14. Nxc6 {[%emt 0:05:23]} ({Better is} 14.
Be3 $11 Nxd4 15. Bxd4) 14... bxc6 {[%emt 0:00:57]} 15. Bd3 {[%emt 0:01:17]} g3
{[%emt 0:05:08]} 16. hxg3 {[%emt 0:01:57]} Ng4 $36 {[%emt 0:01:25] Black has
good play.} 17. Qf3 {[%emt 0:03:23]} O-O-O {[%emt 0:06:02]} 18. b4 {[%emt 0:07:
44]} Rdg8 {[%emt 0:06:48]} 19. Be3 {[%emt 0:00:00]} Qb8 {[%emt 0:00:00]} (19...
Nxe3 $11 20. Qxe3 Qxe3 21. Rxe3 h4) 20. Bf4 {[%emt 0:00:00]} h4 {[%emt 0:01:44]
} 21. gxh4 {[%emt 0:03:09]} (21. bxa5 $2 hxg3 22. Bxg3 Qb2 $19) (21. Nd2 $1 $11
) 21... Bxh4 $17 {[%emt 0:02:48]} 22. g3 {[%emt 0:00:20]} (22. Ra2 $142) 22...
Qa7 $2 {[%emt 0:02:17]} 23. Bf1 {[%emt 0:03:42] [#]} (23. Nd2 $11 {remains
equal.}) 23... Bxg3 $1 {[%emt 0:03:27]} 24. Bxg3 {[%emt 0:04:06] [#] aiming
for Bg2.} Nxf2 $1 {[%emt 0:00:03] ( -> ...Nh3+)} 25. Qe3 {[%emt 0:05:12]} Nh3+
$1 {[%emt 0:14:47]} 26. Kg2 {[%emt 0:00:31] [#]} Qc7 {[%emt 0:00:45] [#]} (
26... c5 $1 $17 {Strongly threatening ...Bc6.} 27. Qxc5+ Qxc5 28. bxc5 Bc6) 27.
Nd2 $1 $16 {[%emt 0:02:41] Threatens to win with Ba6+.} f5 $2 {[%emt 0:00:31]
Black cannot hold the game after this.} (27... c5 $16 {is more resistant.}) 28.
exf6 $18 {[%emt 0:01:32]} Nf4+ {[%emt 0:03:39]} 29. Kf3 {[%emt 0:02:10]} Rxg3+
{[%emt 0:00:47]} 30. Kxg3 {[%emt 0:00:06]} Nd3+ {[%emt 0:00:34]} 31. Kf3 {
[%emt 0:00:23][%cal Yg3f3,Yf3e2,Ye2d1,Yd1c1]} Nxe1+ {[%emt 0:00:23]} 32. Rxe1 {
[%emt 0:00:16] Dancing on a razor blade.} ({Not} 32. Qxe1 Rh6 33. Qe3 Rxf6+ 34.
Ke2 a4 $18) 32... Qh2 $2 {[%emt 0:00:31]} (32... Rh5) 33. Qf4 {[%emt 0:02:27]}
Qh1+ {[%emt 0:00:29]} 34. Ke2 {[%emt 0:01:10]} e5 {[%emt 0:00:13]} 35. Qg5 {
[%emt 0:01:07]} Qh2+ $2 {[%emt 0:00:54]} (35... Qh6 36. Qxh6 (36. Qxe5 $2 Re8
$17) 36... Rxh6 37. bxa5 Rxf6) 36. Kd1 {[%emt 0:00:06]} e4 {[%emt 0:00:19]} 37.
f7 {[%emt 0:00:20]} Rf8 {[%emt 0:00:27]} 38. Kc1 {[%emt 0:00:27]} Qf2 {[%emt 0:
00:24]} 39. Ba6+ {[%emt 0:00:40]} Kb8 {[%emt 0:00:00]} 40. Rf1 {[%emt 0:00:13]}
Qh2 {[%emt 0:00:00] Inhibits Qe5+.} 41. Qe7 {[%emt 0:30:12]} Qh8 {[%emt 0:01:
19]} 42. Qxd7 {[%emt 0:00:00][%csl Ga6][%cal Rd7b7]} Qxc3+ {[%emt 0:00:06]
Weighted Error Value: White=0.49/Black=0.71} 1-0

[Event "44th Chess Olympiad Open 2022"]
[Site "Chennai"]
[Date "2022.08.03"]
[Round "6.46"]
[White "Rocha, Maximiliano"]
[Black "Saraci, Korab"]
[Result "0-1"]
[WhiteElo "2117"]
[BlackElo "2287"]
[Annotator "NA RC"]
[PlyCount "52"]
[EventDate "2022.??.??"]
[TimeControl "60"]

1. e4 {[%emt 0:00:04]} c5 {[%emt 0:00:09]} 2. c3 {[%emt 0:00:30]} Nf6 {[%emt 0:
00:00]} 3. e5 {[%emt 0:00:24]} Nd5 {[%emt 0:00:05]} 4. Nf3 {[%emt 0:00:28]} Nc6
{[%emt 0:00:06]} 5. d4 {[%emt 0:00:20]} cxd4 {[%emt 0:00:06]} 6. Bc4 {[%emt 0:
00:00]} e6 {[%emt 0:06:44]} 7. O-O {[%emt 0:20:10]} Nb6 {[%emt 0:23:20]} 8. Bd3
{[%emt 0:04:12]} dxc3 {[%emt 0:08:31]} 9. Nxc3 {[%emt 0:13:17]} d5 {[%emt 0:00:
00]} 10. Qe2 {[%emt 0:14:07]} Be7 {[%emt 0:04:32]} 11. a4 {[%emt 0:08:31]} a6 {
[%emt 0:03:24]} 12. Rd1 {[%emt 0:03:22]} Nd7 {[%emt 0:01:38]} 13. a5 {[%emt 0:
00:00]} Nc5 {[%emt 0:04:20]} 14. Be3 {[%emt 0:04:32]} Bd7 {[%emt 0:05:50]} 15.
Bc2 {[%emt 0:02:19]} Rc8 {[%emt 0:04:13]} 16. Nd4 {[%emt 0:04:48]} O-O {
[%emt 0:04:46]} 17. Nxc6 {[%emt 0:00:53]} Bxc6 {[%emt 0:00:14]} 18. Rd4 {
[%emt 0:02:21]} Nd7 {[%emt 0:01:18]} 19. Bd2 {[%emt 0:02:27]} g6 {[%emt 0:00:
00]} 20. h4 {[%emt 0:00:20]} Bxh4 {[%emt 0:03:30]} 21. Bh6 {[%emt 0:00:32]} Re8
{[%emt 0:00:47]} 22. Qe3 {[%emt 0:03:36]} f5 {[%emt 0:02:23]} 23. exf6 {
[%emt 0:00:00]} Bxf6 {[%emt 0:00:09]} 24. Rg4 {[%emt 0:00:00]} Ne5 {[%emt 0:00:
00]} 25. Rb4 {[%emt 0:00:11]} d4 {[%emt 0:00:23]} 26. Rxd4 {[%emt 0:00:31]}
Qxd4 {[%emt 0:00:08]} 0-1